bitfinex/quotes_ETHUSD_20250814
["timestamp","ask_amount","ask_price","bid_price","bid_amount"]
[1755209563477,2.84220001,4500.3,4499.1,3.632]
[1755209563681,2.22212346,4500.2,4499.2,2.22259824]
[1755209564141,2.22219201,4500.1,4499.1,5.85462402]
[1755209564344,2.84220001,4500.3,4499.1,5.85462402]
[1755209564556,2.84220001,4500.3,4499.2,2.22261565]
[1755209564777,2.22218238,4500.1,4499.1,3.632]
[1755209564979,32.9144372,4500.0,4497.4,0.456]
[1755209565184,35.8922,4499.9,4497.7,3.624]
[1755209565482,2.22287776,4498.7,4497.7,3.624]
[1755209565683,2.22301267,4498.4,4497.7,3.624]
[1755209565887,2.22301267,4498.4,4497.8,0.5847437]
[1755209566186,2.22301267,4498.4,4497.2,2.22359422]
[1755209566187,2.22311862,4498.2,4496.9,3.628]
[1755209566385,2.22311862,4498.2,4497.0,2.22368604]
[1755209566594,2.22325612,4498.0,4497.0,2.22368604]
[1755209566974,2.22317021,4498.1,4496.9,3.628]
[1755209567291,2.22317021,4498.1,4497.0,3.627]
[1755209567292,0.4698,4498.0,4497.0,3.627]
[1755209567487,0.87501017,4499.7,4497.0,3.9897]
[1755209567488,3.0,4498.6,4497.0,3.9897]
[1755209567784,2.22213019,4500.2,4497.0,3.9897]
[1755209567785,0.4698,4498.7,4497.1,0.456]
[1755209567985,0.4698,4498.7,4497.0,3.9897]
[1755209567986,6.0746372,4498.6,4497.0,0.3627]
[1755209568288,2.22346155,4497.5,4496.6,2.22389777]
[1755209568491,2.22346155,4497.5,4496.7,2.22384805]
[1755209568666,2.22346155,4497.5,4496.8,0.22238481]
[1755209568990,2.69311601,4497.8,4496.9,2.22374657]
[1755209569194,0.4698,4497.8,4497.0,2.22368935]
[1755209569483,0.002,4498.3,4497.2,2.22360579]
[1755209570053,0.002,4498.3,4497.7,2.22334659]
[1755209570253,0.002,4498.3,4497.8,0.02223309]
[1755209570555,0.002,4498.3,4497.8,3.628]
[1755209570759,0.002,4498.3,4498.2,2.22311146]
[1755209571290,0.002,4498.3,4498.2,4.93081146]
[1755209571982,0.002,4498.3,4498.2,2.67911146]
[1755209572359,0.002,4498.3,4498.2,5.07181146]
[1755209573691,0.002,4498.3,4498.2,2.22311146]
[1755209573987,0.002,4498.3,4498.2,6.32702112]
[1755209574159,0.002,4498.3,4498.2,4.10390966]
[1755209574562,0.002,4498.3,4498.2,6.32702112]
[1755209574972,0.002,4498.3,4498.2,4.10390966]
[1755209576779,0.002,4498.3,4498.2,4.10590966]
[1755209576979,0.002,4498.3,4498.2,4.10390966]
[1755209578191,0.002,4498.3,4498.2,6.32702112]
[1755209578378,0.002,4498.3,4498.2,6.75512112]
[1755209579068,0.002,4498.3,4498.2,6.32702112]
[1755209579469,0.002,4498.3,4498.2,6.43822112]
[1755209580081,0.002,4498.3,4498.0,2.22318223]
[1755209580082,0.002,4498.3,4497.5,0.667825]
[1755209580281,0.002,4498.3,4498.2,2.22311146]
[1755209580488,0.002,4498.3,4498.2,5.84211146]
[1755209580783,0.002,4498.3,4498.2,6.27021146]
[1755209581573,0.002,4498.3,4498.2,2.22311146]
[1755209581778,0.002,4498.3,4498.2,6.28974085]
[1755209583171,0.002,4498.3,4497.1,0.4281]
[1755209583377,2.8783,4498.2,4497.5,2.22343602]
[1755209583600,2.8783,4498.2,4497.6,3.619]
[1755209583988,2.8783,4498.2,4497.5,2.22343602]
[1755209584190,2.8783,4498.2,4497.6,3.619]
[1755209584386,5.10141494,4498.2,4497.6,3.619]
[1755209584786,0.4564,4498.1,4496.7,0.001]
[1755209585008,5.10147076,4498.1,4496.7,0.001]
[1755209585178,2.2235111,4497.4,4496.8,3.62]
[1755209585373,0.002,4498.3,4496.8,3.62]
[1755209585374,2.8783,4497.3,4496.8,0.58448907]
[1755209585579,2.22334463,4497.8,4496.9,3.62]
[1755209585779,2.4219,4497.7,4496.9,3.62]
[1755209585979,2.22340803,4497.6,4497.1,0.001]
[1755209586200,2.22345851,4497.5,4497.1,0.001]
[1755209586399,5.10176669,4497.5,4497.1,0.001]
[1755209586579,2.8783,4497.4,4497.1,0.001]
[1755209587211,5.10186429,4497.3,4497.1,0.001]
[1755209587414,2.8783,4497.3,4497.1,0.001]
[1755209587612,2.22351153,4497.4,4497.1,0.001]
[1755209587923,2.8783,4497.2,4497.1,0.001]
[1755209589314,5.10190579,4497.2,4497.1,0.001]
[1755209589515,5.57994474,4497.2,4497.1,0.001]
[1755209590218,5.69114474,4497.2,4497.1,0.001]
[1755209591614,2.22380359,4496.8,4496.7,0.001]
[1755209591815,2.35724079,4496.8,4496.7,0.001]
[1755209592034,5.23554079,4496.8,4496.7,0.001]
[1755209592187,5.21330359,4496.8,4496.7,0.001]
[1755209592585,0.1112,4496.8,4496.7,1e-08]
[1755209592794,0.79515085,4497.2,4496.7,1e-08]
[1755209592991,2.8783,4497.7,4496.7,1e-08]
[1755209593222,2.22340803,4497.6,4496.7,1e-08]
[1755209593425,0.0222372,4497.5,4496.7,1e-08]
[1755209593615,2.22373044,4497.0,4496.7,1e-08]
[1755209593810,5.10176832,4497.5,4496.7,1e-08]
[1755209594026,2.22350691,4497.4,4496.7,1e-08]
[1755209594219,5.57980999,4497.5,4496.7,1e-08]
[1755209594422,2.24574914,4497.4,4496.7,1e-08]
[1755209594608,0.0222372,4497.3,4496.7,1e-08]
[1755209594997,0.4564,4497.2,4496.7,1e-08]
[1755209595197,2.22380359,4496.8,4496.7,1e-08]
[1755209595626,2.22350857,4497.4,4496.7,1e-08]
[1755209597000,2.22350857,4497.4,4496.7,0.22239003]
[1755209597214,2.22350857,4497.4,4496.7,1e-08]
[1755209597398,4.64536397,4497.5,4496.7,2.22385134]
[1755209597600,2.38831715,4498.3,4496.7,1e-08]
[1755209597601,2.4219,4498.1,4496.7,1e-08]
[1755209597933,2.22322849,4498.0,4496.9,2.22373845]
[1755209598239,2.4219,4498.1,4496.9,2.22373845]
[1755209598436,2.22322292,4498.0,4497.2,2.22357041]
[1755209598894,2.22329915,4497.9,4496.7,0.42810001]
[1755209599101,2.22329915,4497.9,4497.0,2.22366121]
[1755209599309,2.22321585,4498.0,4497.2,2.22360401]
[1755209599697,2.4219,4497.9,4496.8,0.40791]
[1755209599896,2.22349673,4497.5,4496.7,2.22381007]
[1755209600202,2.2234056,4497.7,4496.9,2.22374337]
[1755209600535,0.4564,4497.8,4496.7,1e-08]
[1755209600536,0.4564,4497.8,4497.1,2.22365154]
[1755209600735,2.4219,4497.9,4496.7,1e-08]
[1755209601035,2.4219,4497.9,4497.2,2.22355894]
[1755209601344,0.002,4498.3,4497.0,0.4281]
[1755209601536,0.002,4498.3,4497.6,2.22338964]
[1755209601729,0.002,4498.3,4497.1,0.26519036]
[1755209601730,2.22506681,4498.3,4497.5,2.22344838]
[1755209602304,2.22506681,4498.3,4497.6,2.22340616]
[1755209602503,2.22506681,4498.3,4497.5,2.22345194]
[1755209602717,2.22506681,4498.3,4498.2,0.1112]
[1755209602912,0.002,4498.3,4498.2,0.1112]
[1755209603222,2.22506204,4498.3,4498.2,0.1112]
[1755209603732,5.14806204,4498.3,4498.2,0.1112]
[1755209603924,2.925,4498.3,4498.2,0.1112]
[1755209604113,5.14806204,4498.3,4498.2,0.1112]
[1755209604751,2.22506204,4498.3,4498.2,0.1112]
[1755209605060,8.80929924,4498.3,4498.2,0.1112]
[1755209605359,9.26415029,4498.3,4498.2,0.1112]
[1755209605509,2.2231717,4498.1,4496.5,2.2239416]
[1755209605709,0.1334372,4498.0,4497.4,0.1112]
[1755209605913,3.0564372,4498.0,4497.4,0.1112]
[1755209606113,2.22345747,4497.5,4497.4,0.1112]
[1755209607054,2.2233014,4497.9,4497.4,0.1112]
[1755209607235,2.22321031,4498.0,4497.4,0.1112]
[1755209607428,2.22321031,4498.0,4497.7,0.1112]
[1755209607747,2.22321031,4498.0,4497.8,4.25]
[1755209608120,0.9301866,4498.3,4497.8,4.25]
[1755209608321,2.925,4498.3,4497.8,4.25]
[1755209608522,0.002,4498.3,4498.1,0.1112]
[1755209609466,0.002,4498.3,4498.2,4.25]
[1755209609616,2.22506204,4498.3,4498.2,4.25]
[1755209609813,4.69716204,4498.3,4498.2,4.25]
[1755209610044,5.14806204,4498.3,4498.2,4.25]
[1755209610256,5.14806204,4498.3,4497.4,4.25]
[1755209610257,2.925,4498.3,4497.4,4.25]
[1755209610569,2.22380359,4496.8,4496.7,1e-08]
[1755209611651,2.22380359,4496.8,4496.7,0.11120001]
[1755209612158,2.22375424,4496.9,4496.7,0.11120001]
[1755209612332,2.22380359,4496.8,4496.7,0.11120001]
[1755209613015,5.14680359,4496.8,4496.7,0.11120001]
[1755209614468,2.22380359,4496.8,4496.7,0.11120001]
[1755209614661,2.22375233,4497.0,4496.7,0.11120001]
[1755209614869,3.62,4497.7,4496.7,0.11120001]
[1755209615025,2.22364402,4497.2,4496.7,1e-08]
[1755209615355,3.62,4497.7,4496.7,1e-08]
[1755209615559,3.62,4497.7,4497.1,0.1112]
[1755209615736,2.22355452,4497.4,4497.1,0.1112]
[1755209616160,2.22350629,4497.5,4497.1,0.1112]
[1755209616322,3.62,4497.7,4497.1,0.1112]
[1755209616657,2.22349779,4497.5,4497.1,0.1112]
[1755209616854,2.2235172,4497.4,4497.1,0.1112]
[1755209617159,2.22356661,4497.3,4497.1,0.1112]
[1755209617453,2.22351778,4497.4,4497.1,0.1112]
[1755209617879,2.22356309,4497.3,4497.1,0.1112]
[1755209618090,3.62,4497.7,4497.1,0.1112]
[1755209618385,2.22360579,4497.2,4497.1,0.1112]
[1755209618678,2.22359775,4497.3,4496.7,1e-08]
[1755209618843,2.22359775,4497.3,4497.2,0.1112]
[1755209619176,2.22321313,4498.0,4497.2,0.1112]
[1755209619348,2.22327166,4497.9,4497.2,0.5665]
[1755209619547,2.22327166,4497.9,4497.7,0.1112]
[1755209621069,2.22330917,4497.8,4497.7,0.1112]
[1755209621274,5.14630917,4497.8,4497.7,0.1112]
[1755209622385,2.22330917,4497.8,4497.7,0.1112]
[1755209622683,2.22352335,4497.4,4496.9,3.614]
[1755209623054,2.923,4497.8,4496.7,1e-08]
[1755209623055,2.22357957,4497.3,4496.7,1e-08]
[1755209623782,2.22345816,4497.5,4497.3,0.1112]
[1755209624084,2.22350691,4497.4,4497.3,0.1112]
[1755209624791,5.14650691,4497.4,4497.3,0.1112]
[1755209627286,5.14650691,4497.4,4496.7,1e-08]
[1755209627287,2.22380359,4496.8,4496.7,1e-08]
[1755209627794,2.22380359,4496.8,4496.7,0.11120001]
[1755209628692,2.22376461,4496.9,4496.7,0.11120001]
[1755209629662,2.22359988,4497.3,4496.7,0.11120001]
[1755209629862,2.22359988,4497.3,4496.8,0.4553]
[1755209630083,2.22344819,4497.6,4497.2,0.1112]
[1755209630284,3.602,4497.8,4497.2,0.1112]
[1755209630285,2.22330917,4497.8,4497.2,0.1112]
[1755209630471,3.604,4497.9,4497.5,0.1112]
[1755209630472,0.002,4497.9,4497.5,0.1112]
[1755209630782,2.22526338,4497.9,4497.5,0.1112]
[1755209630987,0.002,4497.9,4497.5,0.1112]
[1755209631187,2.22340803,4497.6,4497.5,0.1112]
[1755209631584,0.002,4497.9,4497.5,0.1112]
[1755209631752,2.22330917,4497.8,4497.5,0.1112]
[1755209632185,2.22336219,4497.7,4497.5,0.1112]
[1755209632589,0.002,4497.9,4497.5,0.1112]
[1755209632796,2.22529538,4497.9,4497.5,0.576]
[1755209633163,0.002,4497.9,4497.5,0.576]
[1755209633364,2.22330936,4497.8,4497.5,0.1112]
[1755209633698,0.002,4497.9,4497.8,0.1112]
[1755209633917,0.002,4497.9,4497.8,0.5284]
[1755209634107,0.002,4497.9,4497.8,0.1112]
[1755209634802,5.02045974,4497.9,4497.8,0.1112]
[1755209638067,2.22525974,4497.9,4497.8,0.1112]
[1755209639071,0.002,4497.9,4497.8,0.1112]
[1755209642286,0.002,4497.9,4497.8,4.3612]
[1755209642287,2.22525974,4497.9,4497.8,4.3612]
[1755209642629,2.22525974,4497.9,4497.8,0.1112]
[1755209642850,5.04269694,4497.9,4497.8,0.1112]
[1755209643050,2.2236765,4497.1,4496.9,3.582]
[1755209643350,2.22340803,4497.6,4497.5,0.1112]
[1755209643562,2.22330917,4497.8,4497.0,0.4648]
[1755209643716,2.22330917,4497.8,4497.7,0.1112]
[1755209645135,5.04074637,4497.8,4497.7,0.1112]
[1755209645437,2.22372748,4497.0,4496.9,3.581]
[1755209645952,2.22372748,4497.0,4496.9,3.6922]
[1755209646545,2.22366418,4497.1,4496.9,3.6922]
[1755209646761,2.22370469,4497.0,4496.7,1e-08]
[1755209646907,2.22376055,4496.9,4496.7,1e-08]
[1755209647337,2.22370976,4497.0,4496.8,0.1112]
[1755209647521,2.22360838,4497.2,4496.8,0.1112]
[1755209647728,2.22373081,4497.0,4496.8,0.1112]
[1755209647942,0.0222372,4497.0,4496.8,0.1112]
[1755209648111,2.22380359,4496.8,4496.7,1e-08]
[1755209648514,5.01900359,4496.8,4496.7,0.11120001]
[1755209649431,0.1112,4497.4,4496.7,3.68520001]
[1755209649614,0.002,4497.9,4496.9,2.22375104]
[1755209649937,2.22330917,4497.8,4496.8,3.08562]
[1755209650108,0.002,4497.9,4496.9,3.581]
[1755209650310,0.002,4497.9,4496.8,0.36862]
[1755209650516,2.22341926,4497.6,4496.8,2.22379821]
[1755209650734,0.002,4497.4,4496.8,2.22379821]
[1755209651136,0.002,4497.4,4496.7,2.22384469]
[1755209651335,0.002,4497.4,4496.7,1e-08]
[1755209651614,0.002,4497.4,4496.8,2.22380359]
[1755209651815,0.002,4497.4,4496.9,1.07456965]
[1755209653352,2.22377607,4496.9,4496.7,1e-08]
[1755209653641,2.22365524,4497.1,4496.7,1e-08]
[1755209654025,2.22380359,4496.8,4496.7,1e-08]
[1755209655111,2.22376398,4496.9,4496.7,1e-08]
[1755209655320,5.04124079,4496.8,4496.7,1e-08]
[1755209655518,8.49712304,4496.8,4496.7,1e-08]
[1755209655825,8.49712304,4496.8,4496.2,0.001]
[1755209655826,2.22405088,4496.3,4496.2,1e-08]
[1755209656026,8.80105088,4496.3,4496.2,1e-08]
[1755209656356,2.22414981,4496.1,4496.0,1e-08]
[1755209656537,2.24638701,4496.1,4496.0,1e-08]
[1755209656735,2.24638701,4496.1,4495.9,1e-08]
[1755209656736,2.22419928,4496.0,4495.9,1e-08]
[1755209656957,35.22424875,4495.9,4495.8,1e-08]
[1755209657256,5.22429823,4495.8,4495.3,1e-08]
[1755209657455,3.0,4495.3,4493.1,0.001]
[1755209657652,2.22540255,4493.6,4493.1,0.001]
[1755209657852,2.2246941,4495.0,4493.1,0.001]
[1755209657853,3.578,4494.0,4493.1,0.001]
[1755209658059,3.579,4493.9,4493.1,0.001]
[1755209658356,3.0,4493.7,4493.1,0.001]
[1755209658542,2.22558532,4493.2,4493.1,0.001]
[1755209658744,8.82982252,4493.2,4493.1,0.001]
[1755209658964,11.76716264,4493.2,4493.1,0.001]
[1755209659146,2.22563486,4493.1,4491.9,0.001]
[1755209659349,2.22573393,4492.9,4491.9,0.001]
[1755209659535,2.22573393,4492.9,4492.0,0.1122]
[1755209659536,2.33703301,4492.7,4492.0,0.1122]
[1755209659738,2.35927021,4492.7,4492.0,0.1122]
[1755209659957,8.15447021,4492.7,4492.0,0.1122]
[1755209660146,8.13223301,4492.7,4492.0,0.1122]
[1755209660456,8.13223301,4492.7,4492.0,0.001]
[1755209660833,2.22564876,4493.1,4492.0,0.001]
[1755209661033,0.0222372,4493.1,4492.6,0.1122]
[1755209661357,0.0222372,4493.1,4492.6,0.001]
[1755209661358,2.22583301,4492.7,4492.6,0.001]
[1755209661655,8.94727021,4492.7,4492.6,0.001]
[1755209661854,8.92503301,4492.7,4492.6,0.001]
[1755209662157,11.62853301,4492.7,4492.6,0.001]
[1755209663826,2.2260312,4492.3,4492.2,0.001]
[1755209664021,8.8332684,4492.3,4492.2,0.001]
[1755209664257,11.5145312,4492.3,4492.2,0.001]
[1755209665058,2.22613031,4492.1,4492.0,0.001]
[1755209665259,2.22613031,4492.1,4491.7,1e-08]
[1755209665260,32.24836751,4492.1,4491.7,1e-08]
[1755209665469,2.22627899,4491.8,4491.7,1e-08]
[1755209665764,8.81427899,4491.8,4491.7,1e-08]
[1755209666551,5.22627899,4491.8,4491.7,1e-08]
[1755209666734,0.089208,4492.1,4491.7,1e-08]
[1755209666942,0.089208,4492.1,4491.7,2.88080001]
[1755209667149,2.31534382,4492.1,4491.8,0.4295]
[1755209667346,2.22627899,4491.8,4491.7,1e-08]
[1755209667665,3.588,4491.8,4491.7,1e-08]
[1755209667854,5.81427899,4491.8,4491.7,1e-08]
[1755209668972,5.76427899,4491.8,4491.7,1e-08]
[1755209669139,3.538,4491.8,4491.7,1e-08]
[1755209669738,5.76427899,4491.8,4491.7,1e-08]
[1755209670058,2.22606012,4492.3,4491.7,1e-08]
[1755209670287,3.582,4492.2,4491.7,5.10708359]
[1755209670456,3.582,4492.3,4491.8,0.94020836]
[1755209670779,3.582,4492.2,4491.7,1e-08]
[1755209670943,2.22623287,4491.9,4491.7,1e-08]
[1755209671147,5.80927899,4491.8,4491.7,1e-08]
[1755209671791,5.80927899,4491.8,4491.7,4.25000001]
[1755209673173,8.80927899,4491.8,4491.7,4.25000001]
[1755209673685,0.79515085,4493.8,4491.7,4.25000001]
[1755209673686,3.0,4493.0,4491.7,5.10460001]
[1755209674010,2.22575239,4492.9,4491.8,4.6795]
[1755209674184,3.579,4492.8,4491.8,6.7013]
[1755209674355,2.2258403,4492.7,4491.9,0.4295]
[1755209674965,3.579,4492.8,4491.9,0.4295]
[1755209675167,2.22588888,4492.6,4492.0,0.36916403]
[1755209675489,3.16118441,4493.4,4492.4,2.22597479]
[1755209675672,3.16118441,4493.4,4492.1,9.35692799]
[1755209675673,3.578,4493.2,4492.5,5.10673075]
[1755209676381,5.22554178,4493.3,4492.5,2.8808]
[1755209676559,5.22554178,4493.3,4492.6,0.28808]
[1755209676958,4.5276874,4493.4,4492.6,0.28808]
[1755209677181,4.5276874,4493.4,4492.7,2.22583301]
[1755209677788,4.5276874,4493.4,4492.6,0.28808]
[1755209678584,2.22564767,4493.1,4492.6,0.28808]
[1755209678753,3.59,4493.1,4492.6,0.28808]
[1755209678951,3.59,4493.1,4492.7,0.746388]
[1755209679376,3.59,4493.1,4492.8,0.4295]
[1755209679556,0.9356874,4493.4,4492.9,0.4295]
[1755209679757,0.9356874,4493.4,4493.0,2.8808]
[1755209679990,0.9356874,4493.4,4493.1,2.8808]
[1755209680198,0.9356874,4493.4,4493.0,2.22563636]
[1755209680355,0.9356874,4493.4,4493.2,2.2255415]
[1755209680562,0.9356874,4493.4,4493.3,5.10633579]
[1755209681999,3.582,4494.3,4493.5,5.53970593]
[1755209682196,3.582,4494.3,4493.6,3.7438126]
[1755209682360,2.22510286,4494.2,4493.7,0.59692059]
[1755209682558,2.22517573,4494.1,4493.8,3.3143126]
[1755209682779,2.22517856,4494.1,4493.8,3.3143126]
[1755209683079,2.22517856,4494.1,4493.9,3.3143126]
[1755209683458,3.582,4494.3,4493.6,0.4295]
[1755209683459,2.22510167,4494.2,4494.0,3.3143126]
[1755209683658,2.22510167,4494.2,4494.1,3.3143126]
[1755209684562,3.582,4494.3,4494.1,3.3143126]
[1755209684763,2.22509011,4494.2,4494.1,3.3143126]
[1755209685382,2.22509011,4494.2,4494.1,3.4255126]
[1755209688511,2.70072364,4494.2,4494.1,3.4255126]
[1755209689512,2.22509011,4494.2,4494.1,3.4255126]
[1755209690888,2.22509011,4494.2,4494.1,0.1112]
[1755209692908,0.002,4494.7,4493.8,3.572]
[1755209693153,0.002,4494.7,4494.1,2.69693035]
[1755209693351,0.002,4494.7,4494.1,0.4718]
[1755209693532,0.002,4494.7,4493.4,3.572]
[1755209693717,2.22514722,4494.1,4493.4,3.572]
[1755209693915,2.22519451,4494.0,4493.5,0.62693757]
[1755209694516,2.22513669,4494.2,4493.5,0.62693757]
[1755209694743,2.22517063,4494.1,4493.5,1.09873757]
[1755209694945,2.22522766,4494.0,4493.5,0.62693757]
[1755209695148,2.22527869,4493.9,4493.5,0.62693757]
[1755209695445,2.22527869,4493.9,4493.6,0.41989376]
[1755209695651,6.23388872,4494.3,4493.6,0.41989376]
[1755209695855,2.22509011,4494.2,4493.4,3.572]
[1755209696150,2.2251967,4494.0,4493.4,4.0438]
[1755209696311,2.22509011,4494.2,4493.4,4.0438]
[1755209696511,2.22525845,4493.9,4493.4,4.0438]
[1755209696707,2.22513962,4494.1,4493.5,0.40438]
[1755209697155,2.22500234,4494.4,4493.5,0.87618]
[1755209697358,2.22509466,4494.2,4493.5,2.62981034]
[1755209697657,2.22509466,4494.2,4493.6,0.4718]
[1755209697954,2.22505333,4494.3,4493.6,0.4718]
[1755209698158,2.22505333,4494.3,4493.7,0.89867128]
[1755209698661,2.22510431,4494.2,4493.7,0.89867128]
[1755209699159,2.22515206,4494.1,4493.7,0.89867128]
[1755209699362,2.22515206,4494.1,4493.5,0.87618]
[1755209699562,2.22509768,4494.2,4493.5,0.87618]
[1755209699739,2.22514968,4494.1,4493.5,0.87618]
[1755209699940,2.70169214,4494.4,4493.5,0.40438]
[1755209699941,0.47669372,4494.4,4493.5,0.40438]
[1755209700142,0.4368,4494.2,4493.5,3.571]
[1755209700345,2.22553361,4493.4,4492.5,2.22589215]
[1755209700547,2.22555324,4493.3,4492.5,2.22589215]
[1755209700869,2.22555324,4493.3,4492.6,2.22586969]
[1755209701066,2.22549834,4493.4,4492.6,2.22586969]
[1755209701223,2.22549834,4493.4,4492.7,0.92686697]
[1755209701606,0.59585007,4494.6,4492.8,2.7849]
[1755209701724,0.002,4494.7,4492.9,10.37936993]
[1755209701923,0.002,4494.7,4494.6,2.22489209]
[1755209702122,0.002,4494.7,4494.6,5.79589209]
[1755209702352,0.002,4494.7,4494.6,9.38287764]
[1755209703153,0.002,4494.7,4494.6,9.49407764]
[1755209703521,0.002,4494.7,4494.6,12.49407764]
[1755209704871,0.002,4494.7,4494.6,9.70917764]
[1755209705061,0.002,4494.7,4494.6,6.13817764]
[1755209705268,0.002,4494.7,4494.6,9.70917764]
[1755209705639,0.002,4494.7,4494.6,12.49407764]
[1755209706849,0.002,4494.7,4494.6,8.92307764]
[1755209707055,0.002,4494.7,4494.6,6.70817764]
[1755209707646,0.002,4494.7,4494.6,7.17997764]
[1755209708546,0.002,4494.7,4494.6,6.70817764]
[1755209708741,0.002,4494.7,4494.6,5.90609209]
[1755209709793,0.002,4494.7,4494.6,6.37789209]
[1755209709940,0.002,4494.7,4494.6,5.90609209]
[1755209710343,0.002,4494.7,4494.6,2.33609209]
[1755209710545,2.8289,4494.7,4494.6,0.1112]
[1755209710852,2.8289,4494.7,4494.6,3.6812]
[1755209711654,0.002,4494.7,4494.6,3.6812]
[1755209711979,0.002,4494.7,4494.6,5.90609209]
[1755209712278,0.002,4494.7,4494.6,3.6812]
[1755209712574,2.8289,4494.7,4494.6,3.6812]
[1755209712747,0.002,4494.7,4494.6,3.6812]
[1755209712948,0.002,4494.7,4494.6,5.90609209]
[1755209713372,0.002,4494.7,4494.6,3.6812]
[1755209714574,2.8289,4494.7,4494.6,3.6812]
[1755209716379,2.3921,4494.7,4494.6,3.6812]
[1755209716784,0.002,4494.7,4494.6,5.79489209]
[1755209716966,0.002,4494.7,4494.6,7.06867746]
[1755209717169,0.002,4494.7,4494.6,9.38177746]
[1755209717779,0.002,4495.1,4495.0,2.2246941]
[1755209717990,0.002,4495.1,4495.0,8.7936941]
[1755209717991,1e-08,4495.1,4495.0,8.7936941]
[1755209718158,1e-08,4495.1,4495.0,9.2654941]
[1755209718358,1e-08,4495.1,4495.0,10.65473891]
[1755209719771,1e-08,4495.1,4495.0,12.96783891]
[1755209722977,1e-08,4495.1,4495.0,9.39883891]
[1755209723185,1e-08,4495.1,4495.0,12.96683891]
[1755209725183,0.002,4496.5,4496.4,2.22400142]
[1755209725508,0.002,4496.5,4496.4,9.10031401]
[1755209725707,2.8684,4496.5,4496.4,9.10031401]
[1755209726018,0.002,4496.5,4496.4,7.63944249]
[1755209726189,0.002,4496.5,4496.4,5.79200142]
[1755209727205,0.002,4496.5,4496.4,5.90320142]
[1755209736730,0.002,4496.5,4496.4,16.36151401]
[1755209737133,0.002,4497.3,4497.2,2.22360579]
[1755209737443,0.002,4497.3,4497.2,5.78860579]
[1755209737831,0.002,4497.3,4497.2,9.20611838]
[1755209738127,0.002,4497.3,4497.2,12.20611838]
[1755209738339,0.002,4497.3,4497.2,12.64501838]
[1755209738545,0.002,4497.3,4497.2,14.84688752]
[1755209738711,1e-08,4497.3,4497.2,17.14948752]
[1755209739607,1e-08,4497.4,4497.3,5.22355635]
[1755209739808,1e-08,4497.4,4497.3,15.11505635]
[1755209740013,1e-08,4497.4,4497.3,17.31952039]
[1755209740214,1e-08,4497.4,4497.3,15.01692039]
[1755209740421,1e-08,4497.4,4497.3,18.14302039]
[1755209742819,2.8684,4497.9,4497.8,5.89850917]
[1755209743500,0.002,4497.9,4497.8,6.56917014]
[1755209744035,1e-08,4497.9,4497.8,9.56917014]
[1755209744213,1e-08,4497.9,4497.8,10.00807014]
[1755209744609,1e-08,4498.2,4497.8,14.93476097]
[1755209744808,1e-08,4498.2,4497.9,5.7415]
[1755209745014,1e-08,4498.2,4498.1,5.22316089]
[1755209745413,1e-08,4498.2,4498.1,8.96637347]
[1755209745608,1e-08,4498.7,4498.6,2.22291379]
[1755209745804,1e-08,4498.7,4498.6,19.24022637]
[1755209746006,1e-08,4498.7,4498.6,15.78842637]
[1755209746313,1e-08,4498.7,4498.6,16.24022637]
[1755209746314,2.86640001,4498.7,4498.6,16.24022637]
[1755209746638,1e-08,4498.7,4498.6,5.78591379]
[1755209746941,2.8664,4499.4,4499.3,2.22256795]
[1755209747145,2.8664,4499.4,4499.3,5.78556795]
[1755209749049,2.8664,4499.4,4499.3,3.563]
[1755209750227,2.8664,4499.4,4499.3,3.562]
[1755209751452,2.8664,4499.9,4499.4,2.22251855]
[1755209751746,1.07876784,4500.4,4499.5,3.562]
[1755209751747,2.7988,4499.8,4499.5,3.562]
[1755209752040,2.7988,4499.7,4499.5,3.562]
[1755209752211,2.22222524,4500.0,4499.5,3.562]
[1755209752417,2.7988,4499.6,4499.5,3.562]
[1755209752711,2.7988,4499.6,4499.5,3.561]
[1755209753135,5.02121977,4499.6,4499.5,3.561]
[1755209753840,2.7988,4499.6,4499.5,3.561]
[1755209754649,2.3635,4499.6,4499.5,5.78346916]
[1755209754846,0.4353,4499.9,4499.5,3.561]
[1755209755051,0.4353,4499.9,4499.8,2.22232099]
[1755209755347,0.4353,4500.3,4500.0,2.22221623]
[1755209755516,2.7988,4500.3,4500.1,3.561]
[1755209755713,1.07876784,4500.4,4500.1,3.561]
[1755209755935,2.7988,4500.2,4500.1,3.561]
[1755209756355,2.7988,4500.2,4500.1,3.6722]
[1755209756850,2.7988,4500.2,4500.1,5.89437284]
[1755209757239,0.002,4500.5,4500.1,4.26163728]
[1755209757549,0.002,4500.5,4500.4,2.2220247]
[1755209757750,0.002,4500.5,4500.4,3.6722]
[1755209759251,5.02277533,4500.5,4500.4,3.6712]
[1755209759421,2.8008,4500.5,4500.4,3.6712]
[1755209759822,5.02277533,4500.5,4500.4,3.6712]
[1755209760018,5.02277533,4500.5,4500.4,0.1112]
[1755209762935,5.02277533,4500.5,4500.4,3.6702]
[1755209762936,0.002,4500.5,4500.4,3.6702]
[1755209763432,0.002,4500.5,4500.4,5.8922247]
[1755209763625,0.002,4500.5,4500.4,3.559]
[1755209763839,0.002,4500.5,4500.4,0.1112]
[1755209763840,2.8008,4500.5,4500.4,0.1112]
[1755209764039,2.8008,4500.5,4500.4,3.6702]
[1755209764365,2.8008,4500.5,4500.4,0.1112]
[1755209764540,0.002,4500.5,4500.4,0.1112]
[1755209764734,0.002,4500.5,4500.4,2.3332247]
[1755209764931,0.002,4500.5,4500.4,3.14465915]
[1755209766034,0.002,4500.5,4500.4,3.61795915]
[1755209766250,0.002,4500.5,4500.4,3.14465915]
[1755209767046,0.002,4500.5,4500.4,2.3332247]
[1755209767363,0.002,4500.5,4500.4,3.6692]
[1755209768365,2.8008,4500.5,4500.4,0.1112]
[1755209768673,2.8008,4500.5,4500.4,3.6692]